Cogmind - Beta 11.1 @@@ ROGUE MODE // 2022.05.02 @ 13:58:20 Player: Olga Result: Self-destructed Performance ------------- Evolutions (2) 1000 Regions Visited (4) 800 Robots Destroyed (11) 55 Value Destroyed (116) 116 Prototype IDs (1) 20 Alien Tech Used (0) 0 Bonus (0) 0 TOTAL SCORE: 1991 Bonus ------- None Cogmind --------- Core Integrity 550/550 Matter 190/300 Energy 96/140 System Corruption 0% Temperature Cool (4) Movement Flying (27) Location -8/Materials Parts ------- > --- POWER (1) -------- Light Deuterium Engine > --- PROPULSION (4) --- Flight Unit Cesium-ion Thruster Cesium-ion Thruster Cesium-ion Thruster > --- UTILITY (4) ------ Small Storage Unit Improved Terrain Scan Processor Improved Terrain Scan Processor > --- WEAPON (2) ------- Light Assault Rifle Heavy Hammer > --- INVENTORY (8) ---- Flight Unit Flight Unit Flight Unit Experimental Sensor Array System Shield Grenade Launcher Peak State ------------ > --- POWER ------------ Light Nuclear Core > --- PROPULSION ------- Flight Unit Cesium-ion Thruster Cesium-ion Thruster Cesium-ion Thruster > --- UTILITY ---------- Small Storage Unit Improved Terrain Scan Processor Improved Terrain Scan Processor > --- WEAPON ----------- Light Assault Rifle Heavy Hammer > --- INVENTORY -------- Flight Unit Flight Unit Flight Unit Experimental Sensor Array System Shield Grenade Launcher [Rating: 24] Favorites ----------- Power Light Ion Engine Engine Light Ion Engine Power Core Light Nuclear Core Propulsion Cesium-ion Thruster Flight Unit Cesium-ion Thruster Utility Small Storage Unit Device Experimental Sensor Array Storage Small Storage Unit Processor Improved Terrain Scan Processor Weapon Light Assault Rifle Ballistic Gun Light Assault Rifle Impact Weapon Heavy Hammer Build | -11 -10 -9 -9 -8 ------- Run | Scr Mat Mat Min Mat Slots Evolved 4 | . . 2 . 2 Power . | . . . . . Propulsion 2 | . . . . 2 Utility 2 | . . 2 . . Weapon . | . . . . . Parts Attached 19 | 1 2 4 4 8 Power 4 | . . 1 1 2 Engine 3 | . . 1 1 1 Core 1 | . . . . 1 Reactor . | . . . . . Propulsion 7 | . 1 2 1 3 Treads . | . . . . . Leg . | . . . . . Wheel . | . . . . . Hover . | . . . . . Flight 7 | . 1 2 1 3 Utility 4 | . . 1 1 2 Device 1 | . . . 1 . Storage 1 | . . 1 . . Processor 2 | . . . . 2 Hackware . | . . . . . Protection . | . . . . . Artifact . | . . . . . Weapon 4 | 1 1 . 1 1 Energy Gun . | . . . . . Energy Cannon . | . . . . . Ballistic Gun 3 | 1 1 . 1 . Ballistic Cannon . | . . . . . Launcher . | . . . . . Special Weapon . | . . . . . Impact Weapon 1 | . . . . 1 Slashing Weapon . | . . . . . Piercing Weapon . | . . . . . Special Melee Weapon . | . . . . . Unidentified Prototypes 1 | . . . 1 . Parts Lost 1 | . . . 1 . Power . | . . . . . Propulsion 1 | . . . 1 . Utility . | . . . . . Weapon . | . . . . . Highest Loss Streak 1 | . . . 1 . To Critical Strikes . | . . . . . Average Slot Usage (%) 53 | . 19 61 62 81 Engine 7 | . . 8 11 6 Flight 17 | . 1 22 21 36 Device 1 | . . . 2 . Storage 7 | . . 8 11 9 Ballistic Gun 17 | . 18 22 16 9 Naked Turns . | . . . . . Heaviest Build 14 | 1 2 10 11 14 Greatest Support 19 | 3 4 10 10 19 Greatest Overweight (x) 1 | . . . 1 . Average Overweight (x) . | . . . . . Largest Inventory Capacity 8 | 5 5 8 8 8 Average Capacity 7 | 5 5 7 8 8 Most Carried 8 | 4 2 5 8 7 Average Carried 4 | 2 2 3 6 5 Final Capacity 8 | 5 5 8 8 8 Final Carried 8 | 2 2 4 8 6 Class Distribution -------------------- 77% | Sprinter 22% | Mutant Dominant Class ---------------- Mutant | -10/Materials Sprinter | -9/Materials Sprinter | -9/Mines Sprinter | -8/Materials Resources | -11 -10 -9 -9 -8 ----------- Run | Scr Mat Mat Min Mat Matter Collected 342 | 200 34 17 91 . Remotely . | . . . . . Salvage Created 153 | . 45 17 91 . Parts 12 | . 3 1 8 . Haulers Intercepted . | . . . . . Recyclers Shooed . | . . . . . Parts Field Recycled . | . . . . . Retrieved Matter . | . . . . . Parts Self-Destructed . | . . . . . Prevented . | . . . . . Kills | -11 -10 -9 -9 -8 ------- Run | Scr Mat Mat Min Mat Combat Hostiles Destroyed 10 | . 3 . 7 . Guns 10 | . 3 . 7 . Classes Destroyed 2 | . 1 1 . . Operator 1 | . . 1 . . Swarmer 10 | . 3 . 7 . Best Kill Streak 4 | . 3 1 4 . Combat Bots Only 4 | . 3 . 4 . Max Kills in Single Turn 1 | . 1 1 1 . Gunslinging . | . . . . . Exploded . | . . . . . Melee . | . . . . . Uniques/NPCs Destroyed . | . . . . . Combat | -11 -10 -9 -9 -8 -------- Run | Scr Mat Mat Min Mat Damage Taken 361 | . 117 14 230 . Core 245 | . 109 . 136 . Absorbed by Shields . | . . . . . Core Remaining (%) 74 | 100 56 . 66 . Volleys Fired 47 | . 13 5 29 . Largest 2 | . 2 2 2 . Hottest 40 | . 40 40 40 . Shots Fired 67 | . 17 10 40 . Gun 67 | . 17 10 40 . Cannon . | . . . . . Launcher . | . . . . . Special . | . . . . . Kinetic 67 | . 17 10 40 . Thermal . | . . . . . Explosive . | . . . . . Electromagnetic . | . . . . . Robot Hit Streak 4 | . 4 3 4 . Robot Miss Streak 3 | . 1 1 3 . Penetration Max . | . . . . . Secondary Targets . | . . . . . Shots Hit Robots 36 | . 11 6 19 . Core Hits 15 | . 5 2 8 . Critical Kills . | . . . . . Critical Parts Destroyed . | . . . . . Critical Strikes . | . . . . . Melee Attacks . | . . . . . Impact . | . . . . . Slashing . | . . . . . Piercing . | . . . . . Sneak Attacks . | . . . . . Combat Hostiles . | . . . . . Follow-up Attacks . | . . . . . Damage Inflicted 287 | . 81 52 154 . Guns 287 | . 81 52 154 . Cannons . | . . . . . Explosions . | . . . . . Melee . | . . . . . Ramming . | . . . . . Kinetic 287 | . 81 52 154 . Thermal . | . . . . . Explosive . | . . . . . Electromagnetic . | . . . . . Impact . | . . . . . Slashing . | . . . . . Piercing . | . . . . . Highest Corruption . | . . . . . Average Corruption . | . . . . . Corruption Purged . | . . . . . Corruption Blocked . | . . . . . Overload Shots . | . . . . . Overflow Damage . | . . . . . Projectiles . | . . . . . Explosions . | . . . . . Melee . | . . . . . Knockbacks . | . . . . . Impact . | . . . . . Kinetic . | . . . . . Secondary . | . . . . . Self-Inflicted Damage . | . . . . . Shots . | . . . . . Rammed . | . . . . . Targets Rammed . | . . . . . Kicked . | . . . . . Crushed . | . . . . . Highest Temperature 3 | . . 3 3 . Average Temperature 2 | . . 2 2 . Received Heat Transfer . | . . . . . Siege Activations . | . . . . . Robots Corrupted . | . . . . . Combat Hostiles . | . . . . . Parts Fried . | . . . . . Impact Corruptions . | . . . . . Robots Melted . | . . . . . Combat Hostiles . | . . . . . Parts Melted . | . . . . . Heat Transferred . | . . . . . Parts Sabotaged . | . . . . . Parts Stolen . | . . . . . Parts Stripped . | . . . . . Power Chain Reactions . | . . . . . Missiles Intercepted . | . . . . . Alert | -11 -10 -9 -9 -8 ------- Run | Scr Mat Mat Min Mat Peak Influence 226 | . 115 83 226 102 Initial 87 | . . 48 31 87 Average 91 | . 28 58 128 91 Maximum Alert Level 1 | . . . 1 . Low Security (%) 90 | 100 100 100 82 100 Level 1 9 | . . . 17 . Level 2 . | . . . . . Level 3 . | . . . . . Level 4 . | . . . . . Level 5 . | . . . . . High Security . | . . . . . Max Security . | . . . . . Squads Dispatched 1 | . . 1 . . Investigation . | . . . . . Extermination . | . . . . . Reinforcement 1 | . . 1 . . Assault . | . . . . . Garrison . | . . . . . Intercept . | . . . . . Searches Triggered . | . . . . . Construction Impeded . | . . . . . Haulers Reinforced . | . . . . . Active Scanning Responses . | . . . . . Cargo Convoy Interrupts . | . . . . . Stealth | -11 -10 -9 -9 -8 --------- Run | Scr Mat Mat Min Mat Distress Signals . | . . . . . Communications Jammed . | . . . . . Distress Signals . | . . . . . Times Spotted 22 | . 9 4 9 . Peak Tracking Total 7 | . 7 4 4 . Tactical Retreats 2 | . 1 . 1 . Traps | -11 -10 -9 -9 -8 ------- Run | Scr Mat Mat Min Mat Traps Triggered 1 | . 1 . . . Indirectly . | . . . . . Trap Hack Attempts . | . . . . . Triggered . | . . . . . Disarmed . | . . . . . Reprogrammed . | . . . . . Reused . | . . . . . Traps Extracted . | . . . . . Installed . | . . . . . Triggered . | . . . . . Machines | -11 -10 -9 -9 -8 ---------- Run | Scr Mat Mat Min Mat Machines Disabled . | . . . . . Max in Single Turn . | . . . . . Machines Sabotaged . | . . . . . Garrisons Compromised . | . . . . . Overloaded Fab Kills . | . . . . . Hacking | -11 -10 -9 -9 -8 --------- Run | Scr Mat Mat Min Mat Machines Accessed 2 | . 1 . . 1 Terminals 2 | . 1 . . 1 Fabricators . | . . . . . Repair Stations . | . . . . . Recycling Units . | . . . . . Scanalyzers . | . . . . . Garrison Access . | . . . . . Total Hacks 5 | . 3 . . 2 Successful 2 | . 1 . . 1 Failed 3 | . 2 . . 1 Catastrophic . | . . . . . Database Lockouts . | . . . . . Manual 3 | . 3 . . . Terminals 5 | . 3 . . 2 Fabricators . | . . . . . Repair Stations . | . . . . . Recycling Units . | . . . . . Scanalyzers . | . . . . . Garrison Access . | . . . . . Terminal Hacks 2 | . 1 . . 1 Zone Layout 2 | . 1 . . 1 Fabricator Hacks . | . . . . . Repair Station Hacks . | . . . . . Recycling Unit Hacks . | . . . . . Scanalyzer . | . . . . . Garrison Access Hacks . | . . . . . Unauthorized Hacks . | . . . . . Terminals . | . . . . . Fabricators . | . . . . . Repair Stations . | . . . . . Recycling Units . | . . . . . Scanalyzers . | . . . . . Garrison Access . | . . . . . Data Cores Recovered . | . . . . . Used . | . . . . . Hacking Detections 2 | . 1 . . 1 Full Trace Events . | . . . . . Feedback Events . | . . . . . Feedback Blocked . | . . . . . Robot Schematics Acquired . | . . . . . Robots Built . | . . . . . Authchips . | . . . . . Time . | . . . . . Total Robot Build Rating . | . . . . . Part Schematics Acquired . | . . . . . Parts Built . | . . . . . Authchips . | . . . . . Time . | . . . . . Total Part Build Rating . | . . . . . Parts Repaired . | . . . . . Time . | . . . . . Parts Recycled . | . . . . . Recycled Matter . | . . . . . Retrieved Matter . | . . . . . Retrieved Components . | . . . . . Parts Scanalyzed . | . . . . . Part Schematics Acquired . | . . . . . Parts Damaged . | . . . . . Bothacking | -11 -10 -9 -9 -8 ------------ Run | Scr Mat Mat Min Mat Used RIF Installer . | . . . . . Robots Hacked . | . . . . . Non-combat . | . . . . . Combat . | . . . . . Robot Hacks Applied . | . . . . . Relay Couplers Released . | . . . . . Fabnet Peak Effective % . | . . . . . Robots Rewired . | . . . . . Allies Hacked . | . . . . . Hacks Repelled . | . . . . . Allies | -11 -10 -9 -9 -8 -------- Run | Scr Mat Mat Min Mat Total Allies . | . . . . . Largest Group . | . . . . . Highest-Rated Group . | . . . . . Highest-Rated Ally . | . . . . . Total Orders . | . . . . . Ally Attacks . | . . . . . Total Damage . | . . . . . Kills . | . . . . . Allies Corrupted . | . . . . . Allies Melted . | . . . . . Intel | -11 -10 -9 -9 -8 ------- Run | Scr Mat Mat Min Mat Robot Analysis Total . | . . . . . Derelict Logs Recovered 1 | . . . 1 . Drone Launches . | . . . . . Drone Recoveries . | . . . . . Exploration | -11 -10 -9 -9 -8 ------------- Run | Scr Mat Mat Min Mat Turns Passed 411 | 4 100 52 227 28 Spaces Moved 727 | 1 127 94 450 55 Core 93 | 1 92 . . . Treads . | . . . . . Legs . | . . . . . Wheels . | . . . . . Hover . | . . . . . Flight 634 | . 35 94 450 55 Fastest Speed 27 | 50 40 32 32 27 Average Speed 34 | 50 47 32 32 27 Slowest Speed 112 | 50 50 40 112 27 Overloaded Moves . | . . . . . Propulsion Burnouts . | . . . . . Robots Hopped 6 | . 2 . 4 . Cave-ins Triggered . | . . . . . Exploration Rate (%) 26 | 2 27 9 84 8 Regions Visited 4 Branch Regions 1 Pre-discovered Areas . | . . . . . Known Exits Taken . | . . . . . Unknown Exits Taken 4 | 1 1 1 1 . Scrap Searched . | . . . . . Spaces Dug . | . . . . . Terrain Destroyed . | . . . . . Melee . | . . . . . Projectile . | . . . . . AOE . | . . . . . Terrain Rammed . | . . . . . Walls Destroyed . | . . . . . Machines Disabled . | . . . . . Actions | -11 -10 -9 -9 -8 --------- Run | Scr Mat Mat Min Mat Total 819 | 5 149 105 494 66 Wait 16 | . 10 . 6 . Move 711 | . 122 93 441 55 Hop 6 | . 2 . 4 . Pick Up 10 | 1 . 3 5 1 Fast Attach 8 | . 2 1 1 4 Attach 7 | 1 . 2 1 3 Detach 1 | . . . 1 . Swap 4 | . . 1 2 1 Drop 9 | 3 . . 4 2 Fire 47 | . 13 5 29 . Melee . | . . . . . Ram . | . . . . . Kick . | . . . . . Crush . | . . . . . Escape Stasis . | . . . . . Rewire . | . . . . . Trap . | . . . . . Miscellaneous . | . . . . . Route ------- -11/Scrapyard -10/Materials -9/Materials -9/Mines -8/Materials History --------- Turn | Location | Event 1 | -11/Scrapyard | Released all parts (6) 5 | -11/Scrapyard | Discovered new exit (range 0) 5 | -11/Scrapyard | Entered Materials 100 | -10/Materials | Discovered new exit (range 12) 105 | -10/Materials | Entered another Materials area 105 | -9/Materials | Evolved 2 slots: Utility x2 152 | -9/Materials | Discovered new exit (range 15) 157 | -9/Materials | Entered Mines 270 | -9/Mines | Found a damaged Exp. Sensor Array with a note attached 271 | -9/Mines | Found Prototype Device 271 | -9/Mines | Identified Exp. Sensor Array 292 | -9/Mines | YI-UF0 nonchalantly dropped a Grenade Launcher on the ground 323 | -9/Mines | Learned Materials security intel 381 | -9/Mines | Discovered new exit (range 9) 384 | -9/Mines | Entered Materials 384 | -8/Materials | Evolved 2 slots: Propulsion x2 412 | -8/Materials | Self-destructed Last Messages --------------- 00365_ Acquired 12 matter. 00366_ Acquired Flight Unit. 00367_ Acquired 14 matter. 00376_ K-01 Serf collects debris. 00381_ EXIT=FOUND PARAMETERS=PROPULSION+2 LOCATION=UNKNOWN GOAL=ESCAPE Loading Materials security intel (x10)... 00395_ Acquired System Shield. 00396_ Dropped Lgt. Ion Engine. 00397_ Acquired Lgt. Nuclear Core. 00398_ Acquired Imp. Terrain Scan Processor. 00408_ Dropped Lgt. Nuclear Core. 00409_ Acquired Lgt. Deuterium Engine. 00411_ Connecting with Terminal... 00411_ Current location identified: Materials >>Layout(Zone) Retrieving Zone 4W layout... Downloaded map data. Map ----- +----------------------------------------------------+ | ?????? ?????? ???????????? | | ???????? ######/#???????????? | | ?????????? #???????????? | | ??????????# #???????????? | | ??????????# ######??????? | | ??????????+ #??? | | ??????????# ##+#### #####??? | | ??????????# # #?# #??????? | | ??????????+ # #?# #??????? | | ??????????## ####!!/#?# ####???? | | ??????????## #??# ! #?# #???? | | ??????????## #??# #?# #???? | | ??????????## #### * ### #???? | | ############ + + #???? | | # # ######## #???? | | # / # #??????# #???? | | # # #?????## ##??? | | # """ """ + #?????# #??? | | ???"" """ # #?????# #??? | | ????" """ # #?????# #??? | | ???? # #?????# ! T #??? | | ????######## #?????# #??? | | ??????????## ##????#* #??? | | ??????????# =######## ###??? | | ??????????# # #????? | | ??????????# # @#????? | | ??????????# # #????? | | ??????????# ###+#### #????? | | ??????????####### # #????? | | ??????????#?????# """ # #????? | | ??????????#?????# """ # ###### | | ??????????####### """ # # # | | ??????????? # # # # | | ??????????####### # # # | | ????????????????####+### # # | | ??????????########?# #?# + # | | ???????????????????????# ?????? | | ???????????????????????# ?????? | | ???????????????????????? ?????? | | ???????????????????????? ?????? | | ???????????????????????? ?????? | | ???????????????????????????????? | | ???????????????????????????????? | | ???????????????????????????????? | | ???????????????????????????????? | | ???????????????????????????????? | | ???????????????????????????????? | | ???????????????????????????????? | | ???????????????????????????????? | | ???????????????????????????????? | +----------------------------------------------------+ Best States ------------- Heat Dissipation 31 Energy Generation 14 Energy Capacity 160 Matter Stores 298 Matter Capacity 300 Sight Range 16 Robot Scan Range 20 Terrain Scan Density 210 Evasion (%) 64 Item Schematics ----------------- None Robot Schematics ------------------ None Fabricated ------------ Nothing Alien Tech Used ----------------- None Achievements -------------- None Challenges ------------ None Game ------ Seed CorruptionFlakAnalyzer Manual? 0 Play Time 00:08:02 Cumulative 158.6 hours Start 2022.05.02 @ 10:49:09 End 2022.05.02 @ 13:58:20 Sessions 3 Manual Loads 0 Difficulty Rogue Special Mode None Game No. 254 Rogue 253 Adventurer 0 Explorer 1 Win Type - Total 7 Types 7/0/0/0/0/0/0/0/0 Lore% 60 Gallery% 63 Achievement% 53 Wizard Run 0 Options --------- ASCII 1 Keyboard 0 Movement Vi Keybinds 0 Fullscreen 1 Font 18/SmallcapsGlow Map View 76x50 Tactical HUD 1 Map Filters NONE Filters NONE Steam 1 RUN: 368f8f7c-7402-4cb3-86f4-efa600c84514